bitfinex-derivatives/quotes_BTCF0:USTF0_20250823
["timestamp","ask_amount","ask_price","bid_price","bid_amount"]
[1755969222642,1.8216346,115200.0,115190.0,0.55807137]
[1755969223445,1.8216346,115200.0,115190.0,0.49579074]
[1755969223638,1.8216346,115200.0,115190.0,0.57365848]
[1755969224936,1.8216346,115200.0,115190.0,0.49579074]
[1755969225440,1.8216346,115200.0,115190.0,0.53052074]
[1755969227046,1.8216346,115200.0,115190.0,0.53052082]
[1755969227441,1.8216346,115200.0,115190.0,0.54511082]
[1755969234253,2.1824346,115200.0,115190.0,0.46493966]
[1755969234458,2.1824346,115200.0,115190.0,0.43346433]
[1755969234650,2.1824346,115200.0,115190.0,0.42381433]
[1755969236643,2.1824346,115200.0,115190.0,0.42381515]
[1755969239158,1.9324346,115200.0,115190.0,0.42381515]
[1755969239356,1.9324346,115200.0,115190.0,0.36151274]
[1755969240658,1.9324346,115200.0,115190.0,0.39324274]
[1755969241452,1.9324346,115200.0,115190.0,0.37056274]
[1755969242251,1.9324346,115200.0,115190.0,0.40929274]
[1755969242455,1.9324346,115200.0,115190.0,0.45562274]
[1755969243246,1.9324346,115200.0,115190.0,0.50774127]
[1755969243652,1.24798206,115200.0,115190.0,0.50774127]
[1755969243852,1.9324346,115200.0,115190.0,0.51792516]
[1755969244256,1.9324346,115200.0,115190.0,0.50774127]
[1755969246461,1.9324346,115200.0,115190.0,0.59458067]
[1755969246951,1.9324346,115200.0,115190.0,0.50774127]
[1755969247564,1.9324346,115200.0,115190.0,0.44543886]
[1755969248061,1.9364346,115200.0,115190.0,0.44543886]
[1755969248761,1.9364346,115200.0,115190.0,0.41368886]
[1755969249062,1.9364346,115200.0,115190.0,0.44543886]
[1755969249267,1.9364346,115200.0,115190.0,0.50774127]
[1755969249763,1.9364346,115200.0,115190.0,0.44543886]
[1755969251155,1.1434746,115200.0,115190.0,0.44543886]
[1755969251355,1.9363946,115200.0,115190.0,0.44543886]
[1755969254357,1.9363946,115200.0,115190.0,0.45562269]
[1755969256163,1.9363946,115200.0,115190.0,0.44543886]
[1755969256667,1.9363946,115200.0,115190.0,0.41368886]
[1755969256966,1.9363946,115200.0,115190.0,0.44543886]
[1755969257568,1.9363946,115200.0,115190.0,0.50774127]
[1755969257764,1.9363946,115200.0,115190.0,0.44543886]
[1755969258069,1.9363946,115200.0,115190.0,0.50774127]
[1755969260869,1.1434746,115200.0,115190.0,0.50774127]
[1755969261071,1.9359146,115200.0,115190.0,0.50774127]
[1755969262476,1.9359146,115200.0,115190.0,0.47599127]
[1755969262780,1.9359146,115200.0,115190.0,0.45833241]
[1755969263169,1.9357946,115200.0,115190.0,0.45833241]
[1755969263480,1.95570723,115200.0,115190.0,0.39603]
[1755969265678,1.16338723,115200.0,115190.0,0.39603]
[1755969265876,1.95546723,115200.0,115190.0,0.39603]
[1755969268786,1.27101469,115200.0,115190.0,0.39603]
[1755969268987,1.95530723,115200.0,115190.0,0.43068]
[1755969271485,1.16338723,115200.0,115190.0,0.43068]
[1755969271690,1.95558723,115200.0,115190.0,0.43068]
[1755969272387,1.95558723,115200.0,115190.0,0.39603]
[1755969272888,1.95558723,115200.0,115190.0,0.43068]
[1755969273486,1.9356746,115200.0,115190.0,0.45833241]
[1755969274889,1.1434746,115200.0,115190.0,0.45833241]
[1755969275089,1.9353146,115200.0,115190.0,0.49298241]
[1755969276595,1.25086206,115200.0,115190.0,0.49298241]
[1755969276784,1.9351946,115200.0,115190.0,0.49298241]
[1755969277483,1.1434746,115200.0,115190.0,0.49298241]
[1755969277789,1.9351946,115200.0,115190.0,0.49298241]
[1755969278489,1.9351946,115200.0,115190.0,0.57982141]
[1755969280590,1.1434746,115200.0,115190.0,0.57982141]
[1755969280792,1.9350746,115200.0,115190.0,0.57982141]
[1755969281490,1.25062206,115200.0,115190.0,0.57982141]
[1755969281691,1.9350746,115200.0,115190.0,0.57982141]
[1755969282196,1.25062206,115200.0,115190.0,0.57982141]
[1755969282496,1.9350746,115200.0,115190.0,0.57982141]
[1755969283393,1.9350746,115200.0,115190.0,0.54517141]
[1755969283592,1.9350746,115200.0,115190.0,0.57982141]
[1755969284192,1.9350746,115200.0,115190.0,0.54517141]
[1755969284593,0.80299056,115200.0,115190.0,1.53284768]
[1755969284795,0.80315056,115200.0,115190.0,1.47054527]
[1755969284998,0.80315056,115200.0,115190.0,1.20618674]
[1755969285195,1.14537683,115200.0,115190.0,1.54841301]
[1755969286097,1.14537683,115200.0,115190.0,1.55859548]
[1755969287097,1.14437683,115200.0,115190.0,1.55959548]
[1755969287396,1.14437683,115200.0,115190.0,1.48172774]
[1755969288198,0.80215056,115200.0,115190.0,1.48172774]
[1755969288392,1.13549754,115200.0,115190.0,1.48172774]
[1755969288695,1.13549754,115200.0,115190.0,1.55959548]
[1755969293395,0.79327127,115200.0,115190.0,1.55959548]
[1755969293591,1.13549754,115200.0,115190.0,1.55959548]
[1755969293903,1.13549754,115200.0,115190.0,1.48172774]
[1755969296105,1.13549754,115200.0,115190.0,1.13950147]
[1755969296306,1.13549754,115200.0,115190.0,1.48172774]
[1755969299009,1.13549754,115200.0,115190.0,1.30959548]
[1755969299307,1.13549754,115200.0,115190.0,1.29941301]
[1755969299707,1.13549754,115200.0,115190.0,1.23172774]
[1755969299907,1.22232934,115200.0,115190.0,1.23172774]
[1755969300311,1.22232934,115200.0,115190.0,0.88950147]
[1755969300614,1.22232934,115200.0,115190.0,1.23172774]
[1755969301097,1.22232934,115200.0,115190.0,0.88950147]
[1755969301806,1.22232934,115200.0,115190.0,0.88850147]
[1755969302205,1.22332934,115200.0,115190.0,0.88850147]
[1755969304009,1.13649754,115200.0,115190.0,0.88850147]
[1755969305416,0.79427127,115200.0,115190.0,1.23072774]
[1755969305613,0.79327127,115200.0,115190.0,1.23072774]
[1755969305811,0.79327127,115200.0,115190.0,1.23172774]
[1755969306311,1.13549754,115200.0,115190.0,1.23172774]
[1755969307205,1.22232924,115200.0,115190.0,1.23172774]
[1755969307405,1.13649754,115200.0,115190.0,1.23072774]
[1755969308010,1.13549754,115200.0,115190.0,1.23172774]
[1755969308413,1.22232924,115200.0,115190.0,1.23072774]
[1755969308615,1.22232924,115200.0,115190.0,1.23172774]
[1755969308909,1.56455551,115200.0,115190.0,0.85485167]
[1755969309104,1.56555551,115200.0,115190.0,0.47847167]
[1755969309516,1.56555551,115200.0,115190.0,0.45382145]
[1755969310508,1.92635551,115200.0,115190.0,0.39163247]
[1755969310706,1.92635551,115200.0,115190.0,0.37558247]
[1755969311605,2.17635551,115200.0,115190.0,0.34385247]
[1755969312206,2.17635551,115200.0,115190.0,0.32018247]
[1755969312816,2.17635551,115200.0,115190.0,0.32018378]
[1755969313715,2.17635551,115200.0,115190.0,0.34348378]
[1755969317120,2.17635551,115200.0,115190.0,0.3333]
[1755969320919,1.92635551,115200.0,115190.0,0.3333]
[1755969324620,1.92635551,115200.0,115190.0,0.34315]
[1755969325517,1.92635551,115200.0,115190.0,0.39966]
[1755969325822,1.92635551,115200.0,115190.0,0.5162392]
[1755969330824,1.92635551,115200.0,115190.0,0.52642283]
[1755969331018,1.92635551,115200.0,115190.0,0.5162392]
[1755969331522,1.92635551,115200.0,115190.0,0.52642284]
[1755969331723,1.92635551,115200.0,115190.0,0.57842818]
[1755969332525,1.92635551,115200.0,115190.0,0.5162392]
[1755969333127,1.92635551,115200.0,115190.0,0.52642286]
[1755969333621,1.92635551,115200.0,115190.0,0.58861184]
[1755969333826,1.92635551,115200.0,115190.0,0.52642286]
[1755969334226,1.92635551,115200.0,115190.0,0.34348366]
[1755969334820,1.92635551,115200.0,115190.0,0.49706306]
[1755969335225,1.92635551,115200.0,115190.0,0.52706306]
[1755969338728,1.92635551,115200.0,115190.0,0.5168794]
[1755969338930,1.92635551,115200.0,115190.0,0.5270632]
[1755969339429,1.92635551,115200.0,115190.0,0.58925218]
[1755969340821,1.92635551,115200.0,115190.0,0.5270632]
[1755969341433,1.92635551,115200.0,115190.0,0.58925218]
[1755969342028,1.92635551,115200.0,115190.0,0.58925211]
[1755969344234,1.92635551,115200.0,115190.0,0.57906838]
[1755969347535,2.07055551,115200.0,115190.0,0.57906838]
[1755969347737,1.92635551,115200.0,115190.0,0.57906838]
[1755969348930,1.56555551,115200.0,115190.0,0.57906838]
[1755969349430,1.92635551,115200.0,115190.0,0.57906838]
[1755969352334,1.56555551,115200.0,115190.0,0.57906838]
[1755969352541,1.92635551,115200.0,115190.0,0.57906838]
[1755969353638,1.94629964,115200.0,115190.0,0.5168794]
[1755969354340,1.94629964,115200.0,115190.0,0.52706311]
[1755969359043,1.58549964,115200.0,115190.0,0.52706311]
[1755969359551,1.94629964,115200.0,115190.0,0.52706311]
[1755969360145,1.58549964,115200.0,115190.0,0.52706311]
[1755969360849,1.94629964,115200.0,115190.0,0.52706311]
[1755969361046,1.94629964,115200.0,115190.0,0.5168794]
[1755969361349,1.94629964,115200.0,115190.0,0.52706311]
[1755969363561,1.56555551,115200.0,115190.0,0.52706311]
[1755969364252,1.92635551,115200.0,115190.0,0.52706311]
[1755969364851,1.92635551,115200.0,115190.0,0.52706313]
[1755969365656,1.92635551,115200.0,115190.0,0.34348373]
[1755969365846,1.94630139,115200.0,115190.0,0.43032303]
[1755969366053,1.94630139,115200.0,115190.0,0.46120303]
[1755969366252,1.94630139,115200.0,115190.0,0.50953303]
[1755969369263,1.92635551,115200.0,115190.0,0.50953303]
[1755969369857,1.94629618,115200.0,115190.0,0.50953303]
[1755969370057,1.92635551,115200.0,115190.0,0.42269373]
[1755969370260,1.92635551,115200.0,115190.0,0.41251]
[1755969370564,1.92635551,115200.0,115190.0,0.42269404]
[1755969373168,1.92635551,115200.0,115190.0,0.40810404]
[1755969373466,1.92635551,115200.0,115190.0,0.37436404]
[1755969378369,1.92635551,115200.0,115190.0,0.37436412]
[1755969378570,1.92635551,115200.0,115190.0,0.42269412]
[1755969378767,3.57755551,115200.0,115190.0,0.42269412]
[1755969378967,2.89310297,115200.0,115190.0,0.42753]
[1755969379170,3.57755551,115200.0,115190.0,0.42753]
[1755969379973,3.57755551,115200.0,115190.0,0.48971898]
[1755969380467,2.89310297,115200.0,115190.0,0.48971898]
[1755969380775,3.57755551,115200.0,115190.0,0.48971898]
[1755969380969,3.57755551,115200.0,115190.0,0.42753]
[1755969383472,3.57755551,115200.0,115190.0,0.41294]
[1755969383776,3.57755551,115200.0,115190.0,0.3792]
[1755969386969,3.57755551,115200.0,115190.0,0.44138898]
[1755969387480,3.57755551,115200.0,115190.0,0.47512898]
[1755969388770,3.57755551,115200.0,115190.0,0.39548898]
[1755969388972,3.59750561,115200.0,115190.0,0.3333]
[1755969394270,0.0868393,115190.0,115180.0,0.02363]
[1755969394477,1.96167179,115190.0,115180.0,0.35381498]
[1755969394678,1.61944552,115190.0,115180.0,0.36319498]
[1755969394981,1.61944552,115190.0,115180.0,0.38591498]
[1755969396087,0.0868543,115170.0,115160.0,0.14749898]
[1755969396393,0.0868543,115170.0,115150.0,0.07937]
[1755969396394,0.1889418,115160.0,115150.0,0.07937]
[1755969396578,0.89196807,115160.0,115150.0,0.43443]
[1755969397485,0.88696807,115160.0,115150.0,0.43443]
[1755969398184,0.88796807,115160.0,115150.0,0.43443]
[1755969398386,0.88796807,115160.0,115150.0,0.45806]
[1755969399578,0.88896807,115160.0,115150.0,0.45806]
[1755969399886,0.95671345,115160.0,115150.0,0.45806]
[1755969400289,0.95671345,115160.0,115150.0,0.41079]
[1755969400788,0.95671345,115160.0,115150.0,0.45806]
[1755969403892,0.95671345,115160.0,115150.0,0.41079]
[1755969404488,0.95671345,115160.0,115150.0,0.3721]
[1755969406097,0.95971345,115160.0,115150.0,0.3721]
[1755969406791,0.95971345,115160.0,115150.0,0.39573]
[1755969407388,0.95971345,115160.0,115150.0,0.42848]
[1755969407693,0.95971345,115160.0,115150.0,0.443]
[1755969408396,0.95971345,115160.0,115150.0,0.3721]
[1755969408599,0.95971345,115160.0,115150.0,0.34938]
[1755969409899,0.61748718,115160.0,115150.0,0.42848]
[1755969410197,0.95971345,115160.0,115150.0,0.42848]
[1755969410497,0.95971345,115160.0,115150.0,0.443]
[1755969411200,0.95971345,115160.0,115150.0,0.39573]
[1755969412594,0.95971345,115160.0,115150.0,0.38807]
[1755969412792,0.97977792,115160.0,115150.0,0.34938]
[1755969413493,0.95971345,115160.0,115150.0,0.34938]
[1755969413691,1.20971345,115160.0,115150.0,0.34]
[1755969416902,1.35391345,115160.0,115150.0,0.34]
[1755969419005,1.10391345,115160.0,115150.0,0.34]
[1755969419207,1.12399864,115160.0,115150.0,0.34]
[1755969420999,1.10391345,115160.0,115150.0,0.34]
[1755969421198,1.10391345,115160.0,115150.0,0.34901]
[1755969421399,0.1862482,115150.0,115140.0,0.07469]
[1755969421704,3.50382917,115150.0,115140.0,0.40918]
[1755969421904,3.50382917,115150.0,115140.0,0.45681]
[1755969422609,3.50682917,115150.0,115140.0,0.45681]
[1755969422808,3.50834123,115150.0,115140.0,0.45681]
[1755969424211,3.52846297,115150.0,115140.0,0.45681]
[1755969427904,3.88926297,115150.0,115140.0,0.45681]
[1755969433511,3.88926297,115150.0,115140.0,0.40918]
[1755969433818,3.88926297,115150.0,115140.0,0.37002]
[1755969434215,4.23148924,115150.0,115140.0,0.37002]
[1755969435416,3.88926297,115150.0,115140.0,0.37002]
[1755969436114,4.23148924,115150.0,115140.0,0.34]
[1755969442425,4.23144347,115150.0,115140.0,0.34]
[1755969448122,4.23144849,115150.0,115140.0,0.34]
[1755969448829,4.23145034,115150.0,115140.0,0.34]
[1755969452729,3.50985034,115150.0,115140.0,0.34]
[1755969452930,4.23145034,115150.0,115140.0,0.34]
[1755969454121,0.3369851,115140.0,115130.0,0.03407]
[1755969454328,2.17231764,115140.0,115130.0,0.20407]
[1755969454933,2.53311764,115140.0,115130.0,0.22689]
[1755969455328,2.53411764,115140.0,115130.0,0.17]
[1755969455533,2.55420556,115140.0,115130.0,0.08793561]
[1755969455734,0.2773227,115130.0,115120.0,0.02434]
[1755969456032,1.85812756,115130.0,115120.0,0.0335]
[1755969457039,1.85812756,115130.0,115120.0,0.0345]
[1755969457250,1.85812756,115130.0,115120.0,0.01016]
[1755969460644,1.85812756,115130.0,115120.0,0.001]
[1755969467546,1.85812756,115130.0,115120.0,0.0345]
[1755969467739,1.85812756,115130.0,115120.0,0.05732]
[1755969473759,2.21892756,115130.0,115120.0,0.05732]
[1755969475154,2.21892756,115130.0,115120.0,0.08925]
[1755969481755,1.87670129,115130.0,115120.0,0.08925]
[1755969481959,2.21892756,115130.0,115120.0,0.08925]
[1755969483158,2.23902888,115130.0,115120.0,0.08925]
[1755969484058,2.23902888,115130.0,115120.0,0.05732]
[1755969487066,3.89138888,115130.0,115120.0,0.05732]
[1755969487463,3.89138888,115130.0,115120.0,0.0345]
[1755969489356,3.89138888,115130.0,115120.0,0.001]
[1755969498267,3.87128756,115130.0,115120.0,0.001]
[1755969498475,3.89135603,115130.0,115120.0,0.001]
[1755969498672,0.1713902,115120.0,115110.0,0.46289627]
[1755969498974,0.02802859,115130.0,115120.0,0.4575602]
[1755969499168,0.0868784,115140.0,115120.0,1.75486274]
[1755969499366,0.8018826,115130.0,115120.0,0.71901]
[1755969499565,0.8028826,115130.0,115120.0,0.71901]
[1755969499775,0.8028826,115130.0,115120.0,0.8638502]
[1755969499980,0.8028826,115130.0,115120.0,0.8783602]
[1755969500371,0.8028826,115130.0,115120.0,1.28282381]
[1755969501173,0.8028826,115130.0,115120.0,0.94059754]
[1755969501372,0.8028826,115130.0,115120.0,1.28282381]
[1755969501769,0.8028826,115130.0,115120.0,1.19593361]
[1755969503575,0.8028826,115130.0,115120.0,1.13369627]
[1755969504475,0.8028826,115130.0,115120.0,1.19585505]
[1755969504679,1.16948887,115130.0,115120.0,1.19585505]
[1755969504876,1.20174887,115130.0,115120.0,0.85362878]
[1755969505187,1.20174887,115130.0,115120.0,1.19585505]
[1755969505382,1.16948887,115130.0,115120.0,1.19585505]
[1755969507282,1.20174887,115130.0,115120.0,1.28274525]
[1755969508783,1.21531887,115130.0,115120.0,1.28274525]
[1755969509084,1.26184887,115130.0,115120.0,1.28274525]
[1755969509378,1.26184887,115130.0,115120.0,1.28270945]
[1755969509882,1.26184887,115130.0,115120.0,1.19581925]
[1755969513178,0.9196226,115130.0,115120.0,1.19581925]
[1755969513385,1.26184887,115130.0,115120.0,1.19581925]
[1755969513584,1.26184887,115130.0,115120.0,1.13369627]
[1755969513884,1.26184887,115130.0,115120.0,1.19580972]
[1755969515389,1.33660887,115130.0,115120.0,1.19580972]
[1755969520199,1.33660887,115130.0,115120.0,0.37272]
[1755969520491,1.33660887,115130.0,115120.0,0.40681]
[1755969520692,1.69740887,115130.0,115120.0,0.40681]
[1755969521590,1.69740887,115130.0,115120.0,0.43004]
[1755969523788,1.3551826,115130.0,115120.0,0.43004]
[1755969523990,1.69740887,115130.0,115120.0,0.43004]
[1755969528492,1.69740887,115130.0,115120.0,0.46892345]
[1755969533702,1.69740887,115130.0,115120.0,0.40681]
[1755969536999,1.69740887,115130.0,115120.0,0.35821]
[1755969537200,1.69740887,115130.0,115120.0,0.34295]
[1755969539499,1.69740887,115130.0,115120.0,0.31]
[1755969539695,1.96683418,115130.0,115120.0,0.31]
[1755969540005,1.71683418,115130.0,115120.0,0.31]
[1755969543398,1.37460791,115130.0,115120.0,0.31]
[1755969543600,1.71683418,115130.0,115120.0,0.40259345]
[1755969543803,1.71683418,115130.0,115120.0,0.43411345]
[1755969544413,1.71683418,115130.0,115120.0,0.40259345]
[1755969551216,1.71683418,115130.0,115120.0,0.37211345]
[1755969552016,0.2064501,115120.0,115110.0,0.07935717]
[1755969552311,0.90947637,115120.0,115110.0,0.36935717]
[1755969553503,0.90947637,115120.0,115110.0,0.37035717]
[1755969553813,1.25170264,115120.0,115110.0,0.37063258]
[1755969554210,0.90947637,115120.0,115110.0,0.37063258]
[1755969555116,0.91147637,115120.0,115110.0,0.36963258]
[1755969555311,0.91447637,115120.0,115110.0,0.36963258]
[1755969556017,1.25670264,115120.0,115110.0,0.36963258]
[1755969556618,0.91447637,115120.0,115110.0,0.36963258]
[1755969557417,0.91447637,115120.0,115110.0,0.30724372]
[1755969557619,0.55367637,115120.0,115110.0,0.30724372]
[1755969557813,0.5722501,115120.0,115110.0,0.30724372]
[1755969558119,0.91447637,115120.0,115110.0,0.30724372]
[1755969558620,0.55367637,115120.0,115110.0,0.30724372]
[1755969558917,0.91447637,115120.0,115110.0,0.30724372]
[1755969560709,1.25670264,115120.0,115110.0,0.30724372]
[1755969564625,1.25670264,115120.0,115110.0,0.29]
[1755969565331,1.25670264,115120.0,115090.0,0.53856886]
[1755969565332,0.2064652,115100.0,115090.0,0.53856886]
[1755969565627,1.33841147,115100.0,115090.0,0.82856886]
[1755969566521,1.33841147,115100.0,115090.0,0.46776886]
[1755969566720,1.33941147,115100.0,115090.0,0.46776886]
[1755969567626,1.34801052,115100.0,115090.0,0.46776886]
[1755969569125,1.34801052,115100.0,115090.0,0.40538]
[1755969572329,1.34801052,115100.0,115090.0,0.80999513]
[1755969572740,1.00578425,115100.0,115090.0,0.55468166]
[1755969573029,1.34801052,115100.0,115090.0,1.25770793]
[1755969574131,1.34801052,115100.0,115090.0,1.17079513]
[1755969575426,1.34801052,115100.0,115090.0,1.25770783]
[1755969577130,1.34801052,115100.0,115090.0,0.91548156]
[1755969577340,1.34801052,115100.0,115090.0,0.4922927]
[1755969577531,1.34801052,115100.0,115090.0,0.40538]
[1755969577724,0.86174,115100.0,115090.0,1.17072699]
[1755969577924,0.001,115100.0,115090.0,1.54531907]
[1755969578124,0.79088,115100.0,115090.0,1.54531907]
[1755969578332,0.001,115100.0,115090.0,1.54531907]
[1755969578531,0.79092,115100.0,115090.0,1.62318681]
[1755969578730,0.8778253,115100.0,115090.0,1.44531907]
[1755969579030,0.8778253,115100.0,115090.0,1.44631907]
[1755969579434,0.8768253,115100.0,115090.0,1.44631907]
[1755969580637,0.78992,115100.0,115090.0,1.44631907]
[1755969580933,0.78992,115100.0,115090.0,1.52418681]
[1755969584732,0.78992,115100.0,115090.0,1.18196054]
[1755969584928,0.78992,115100.0,115090.0,1.52418681]
[1755969585929,0.2063033,115110.0,115100.0,0.1349553]
[1755969586131,0.9960233,115110.0,115100.0,1.19104157]
[1755969586338,0.2063033,115110.0,115100.0,1.19104157]
[1755969586538,0.9960233,115110.0,115100.0,1.19104157]
[1755969586938,0.9970233,115110.0,115100.0,1.19104157]
[1755969587237,0.9970233,115110.0,115100.0,1.26890931]
[1755969587423,0.9970233,115110.0,115100.0,1.19104157]
[1755969587627,0.2073033,115110.0,115100.0,1.19104157]
[1755969587824,0.9970233,115110.0,115100.0,1.19104157]
[1755969588438,0.2073033,115110.0,115100.0,1.19104157]
[1755969588645,0.9969833,115110.0,115100.0,1.19104157]
[1755969590735,0.9969833,115110.0,115100.0,1.26890931]
[1755969591637,1.33920957,115110.0,115100.0,1.26890931]
[1755969593940,1.33920957,115110.0,115100.0,1.25332679]
[1755969595429,1.33920957,115110.0,115100.0,0.91110052]
[1755969595734,1.33920957,115110.0,115100.0,1.25332679]
[1755969596041,1.33920957,115110.0,115100.0,1.16691157]
[1755969596833,1.33920957,115110.0,115100.0,0.8488153]
[1755969597338,1.33920957,115110.0,115100.0,1.19104157]
[1755969598944,1.33920957,115110.0,115100.0,0.8488153]
[1755969599241,1.33920957,115110.0,115100.0,1.19104157]
[1755969600835,1.33920957,115110.0,115100.0,0.8488153]
[1755969601042,1.93143584,115110.0,115100.0,0.75430036]
[1755969601540,1.58920957,115110.0,115100.0,0.81658558]
[1755969601844,1.58920957,115110.0,115100.0,0.83840558]
[1755969602546,1.58920957,115110.0,115100.0,0.81658558]
[1755969604445,1.58920957,115110.0,115100.0,0.83840558]
[1755969604642,1.58920957,115110.0,115100.0,0.87085558]
[1755969604845,1.58920957,115110.0,115100.0,0.90051558]
[1755969605048,1.93143584,115110.0,115100.0,0.48544558]
[1755969605245,1.93143584,115110.0,115100.0,0.45578548]
[1755969606244,1.58920957,115110.0,115100.0,0.471368]
[1755969606849,1.68143584,115110.0,115100.0,0.43778002]
[1755969607044,2.29223584,115110.0,115100.0,0.35991228]
[1755969607544,2.29223584,115110.0,115100.0,0.3754328]
[1755969609846,2.29223584,115110.0,115100.0,0.35993877]
[1755969616548,1.6077833,115110.0,115100.0,0.35993877]
[1755969616749,2.29223584,115110.0,115100.0,0.36934877]
[1755969616949,2.29223584,115110.0,115100.0,0.39116877]
[1755969618557,2.29323584,115110.0,115100.0,0.39116877]
[1755969618760,2.29323584,115110.0,115100.0,0.40136059]
[1755969619857,2.29323584,115110.0,115100.0,0.39116877]
[1755969620446,2.29323584,115110.0,115100.0,0.40136052]
[1755969620642,2.29323584,115110.0,115100.0,0.39116877]
[1755969620847,2.29323584,115110.0,115100.0,0.40136052]
[1755969622862,2.29323584,115110.0,115100.0,0.39116877]
[1755969623050,2.29474833,115110.0,115100.0,0.39116877]
[1755969623250,2.29474833,115110.0,115100.0,0.40136052]
[1755969623561,2.29474833,115110.0,115100.0,0.42361877]
[1755969624258,2.29474833,115110.0,115100.0,0.43381052]
[1755969624761,1.93394833,115110.0,115100.0,0.43381052]
[1755969625056,2.29474833,115110.0,115100.0,0.43381052]
[1755969628256,1.61029579,115110.0,115100.0,0.43381052]
[1755969628458,2.29474833,115110.0,115100.0,0.43381052]
[1755969630065,2.04474833,115110.0,115100.0,0.43381052]
[1755969630663,2.04474833,115110.0,115100.0,0.40136052]
[1755969632464,1.36029579,115110.0,115100.0,0.40136052]
[1755969632666,2.04474833,115110.0,115100.0,0.40136052]
[1755969633363,1.36029579,115110.0,115100.0,0.45508052]
[1755969633567,1.70252206,115110.0,115100.0,0.48742052]
[1755969633760,1.70252206,115110.0,115100.0,0.76727308]
[1755969634365,1.70252206,115110.0,115100.0,0.82964679]
[1755969634667,1.70252206,115110.0,115100.0,0.48742052]
[1755969637870,1.36029579,115110.0,115100.0,0.48742052]
[1755969638072,1.70252206,115110.0,115100.0,0.48742052]
[1755969638574,1.70252206,115110.0,115100.0,0.46376052]
[1755969638870,1.36029579,115110.0,115100.0,0.46376052]
[1755969639064,1.70252206,115110.0,115100.0,0.46376052]
[1755969639574,1.70252206,115110.0,115100.0,0.48742052]
[1755969640372,1.70252206,115110.0,115100.0,0.47722877]
[1755969640673,1.70448206,115110.0,115100.0,0.48742052]
[1755969643072,0.91284206,115110.0,115100.0,0.48742052]
[1755969643266,1.70420206,115110.0,115100.0,0.48742052]
[1755969643674,1.70420206,115110.0,115100.0,0.42504681]
[1755969644274,0.91284206,115110.0,115100.0,0.42504681]
[1755969644579,1.70416206,115110.0,115100.0,0.42504681]
[1755969646180,1.34336206,115110.0,115100.0,0.42504681]
[1755969646678,1.34336206,115110.0,115100.0,0.41485506]
[1755969646879,0.55204206,115110.0,115100.0,0.41485506]
[1755969647082,1.34316206,115110.0,115100.0,0.41485506]
[1755969648085,1.00093579,115110.0,115100.0,0.41485506]
[1755969648280,1.34316206,115110.0,115100.0,0.41485506]
[1755969649380,1.00093579,115110.0,115100.0,0.38251506]
[1755969649585,1.00089579,115110.0,115100.0,1.20478663]
[1755969649887,1.00081579,115110.0,115100.0,1.45478663]
[1755969650279,1.00081579,115110.0,115100.0,1.51716909]
[1755969650882,1.34304206,115110.0,115100.0,1.51716909]
[1755969651080,1.34304206,115110.0,115100.0,1.45578663]
[1755969651285,1.34304206,115110.0,115100.0,1.51816744]
[1755969652089,1.34104206,115110.0,115100.0,1.51816744]
[1755969652385,1.34104206,115110.0,115100.0,1.45578663]
[1755969653173,1.29184206,115110.0,115100.0,1.45578663]
[1755969653581,0.94961579,115110.0,115100.0,1.45578663]
[1755969653872,1.33847206,115110.0,115100.0,1.45578663]
[1755969655590,1.33847206,115110.0,115100.0,1.5181296]
[1755969655986,1.33847206,115110.0,115100.0,1.08899803]
[1755969656287,1.33847206,115110.0,115100.0,1.4075643]
[1755969657089,1.33847206,115110.0,115100.0,1.5181296]
[1755969657289,1.33847206,115110.0,115100.0,1.4302243]
[1755969657591,1.33847206,115110.0,115100.0,1.4312243]
[1755969657980,1.33847206,115110.0,115100.0,1.5181295]
[1755969658293,1.33947206,115110.0,115100.0,1.5181295]
[1755969658588,1.33947206,115110.0,115100.0,1.4302243]
[1755969658888,1.33947206,115110.0,115100.0,0.83799803]
[1755969659284,1.68169833,115110.0,115100.0,0.40750803]
[1755969659488,2.04249833,115110.0,115100.0,0.29756506]
[1755969660482,1.35804579,115110.0,115100.0,0.29756506]
[1755969660792,2.04249833,115110.0,115100.0,0.29756506]
[1755969662686,2.29249833,115110.0,115100.0,0.29756506]
[1755969663292,2.29249833,115110.0,115100.0,0.30711506]
[1755969664192,1.70027206,115110.0,115100.0,0.40818803]
[1755969664487,1.33971206,115110.0,115100.0,0.8226643]
[1755969664683,1.33963206,115110.0,115100.0,0.8226643]
[1755969665689,1.33863206,115110.0,115100.0,0.8226643]
[1755969666290,1.33863206,115110.0,115100.0,0.48043803]
[1755969666493,1.33963206,115110.0,115100.0,0.8226643]
[1755969666793,1.33963206,115110.0,115100.0,0.8236643]
[1755969667394,1.33963206,115110.0,115100.0,0.8226643]
[1755969669294,1.33963206,115110.0,115100.0,0.76032133]
[1755969670095,0.54847206,115110.0,115100.0,1.18347489]
[1755969670285,0.99723579,115110.0,115100.0,1.45802663]
[1755969670487,0.96473579,115110.0,115100.0,1.45802663]
[1755969670686,0.99723579,115110.0,115100.0,1.45802663]
[1755969670989,1.33946206,115110.0,115100.0,1.45802663]
[1755969672094,1.33946206,115110.0,115100.0,1.5203768]
[1755969673495,1.33946206,115110.0,115100.0,1.5213768]
[1755969673693,1.33946206,115110.0,115100.0,1.45902663]
[1755969674394,1.33846206,115110.0,115100.0,1.45902663]
[1755969675201,0.99623579,115110.0,115100.0,1.5213768]
[1755969675391,0.96373579,115110.0,115100.0,1.5213768]
[1755969675697,0.99623579,115110.0,115100.0,1.5213768]
[1755969675998,0.99623579,115110.0,115100.0,1.17915053]
[1755969676296,0.99623579,115110.0,115100.0,1.5213768]
[1755969678388,0.17281019,115110.0,115100.0,1.2713768]
[1755969678593,0.80029,115110.0,115100.0,1.53689437]
[1755969679501,0.80029,115110.0,115100.0,1.54540381]
[1755969679802,0.8871878,115110.0,115100.0,1.54540381]
[1755969679995,0.79044,115110.0,115100.0,1.54540381]
[1755969680398,0.79044,115110.0,115100.0,1.53689437]
[1755969681399,0.79044,115110.0,115100.0,1.45902663]
[1755969682298,0.79044,115110.0,115100.0,1.53692133]
[1755969682694,0.20130837,115120.0,115110.0,0.0868979]
[1755969682902,1.01343837,115120.0,115110.0,1.3183468]
[1755969683098,1.01343837,115120.0,115110.0,0.97612053]
[1755969683301,1.01343837,115120.0,115110.0,1.66057307]
[1755969683694,1.01343837,115120.0,115110.0,1.3183468]
[1755969683895,1.01343837,115120.0,115110.0,1.34928269]
[1755969684398,1.02228774,115120.0,115110.0,1.31830367]
[1755969684998,1.02328774,115120.0,115110.0,1.31830367]
[1755969685590,1.02228774,115120.0,115110.0,1.31830367]
[1755969686204,1.02228774,115120.0,115110.0,1.31930367]
[1755969687699,1.02228774,115120.0,115110.0,1.24145417]
[1755969688909,1.02196774,115120.0,115110.0,1.24145417]
[1755969691109,0.19950774,115120.0,115110.0,1.24145417]
[1755969691310,1.02376774,115120.0,115110.0,1.24145417]
[1755969692411,1.02376774,115120.0,115110.0,0.8992279]
[1755969692607,1.02376774,115120.0,115110.0,1.24145417]